[Event "Portugal Honour 2021"]
[Site "Fatima"]
[Date "2021.04.07"]
[Round "2.9"]
[White "Barrento, Jorge"]
[Black "Basilio, Rodrigo"]
[Result "0-1"]
[ECO "A48"]
[WhiteElo "1724"]
[BlackElo "1849"]
[Annotator "NA RC"]
[PlyCount "164"]
[EventDate "2021.04.06"]
[EventType "tourn"]
[EventCountry "POR"]
[SourceTitle "playchess.com"]
[Source "ChessBase"]
[SourceQuality "1"]
[TimeControl "5400+30"]

1. d4 {[%emt 0:00:00]} Nf6 {[%emt 0:02:19]} 2. Nf3 {[%emt 0:00:48]} g6 {[%emt 0:00:08]} 3. Bg5 {[%emt 0:00:04]} Ne4 {[%emt 0:01:00]} 4. Bf4 {[%emt 0:00:29]} Bg7 {[%emt 0:00:39]} 5. Nbd2 {[%emt 0:02:02]} d5 {[%emt 0:00:19]} 6. e3 {[%emt 0:00:47]} c5 {[%emt 0:36:19]} 7. c3 {[%emt 0:03:44]} O-O {[%emt 0:04:51]} 8. Bd3 {[%emt 0:01:59]} Bf5 {[%emt 0:00:35]} 9. Qc2 {[%emt 0:11:07]} cxd4 {[%emt 0:07:14]} 10. exd4 {[%emt 0:01:53]} Nxd2 {[%emt 0:06:20]} 11. Qxd2 {[%emt 0:01:14]} Bxd3 {[%emt 0:02:32]} 12. Qxd3 {[%emt 0:00:01]} Nc6 {[%emt 0:01:24]} 13. O-O {[%emt 0:00:38]} Na5 {[%emt 0:05:15]} 14. Rfe1 {[%emt 0:03:30]} e6 {[%emt 0:01:37]} 15. Be5 {[%emt 0:01:22]} Nc4 {[%emt 0:05:07]} 16. Bxg7 {[%emt 0:01:27]} Kxg7 {[%emt 0:00:02]} 17. Qe2 {[%emt 0:03:52]} b5 {[%emt 0:04:21]} 18. Ne5 {[%emt 0:04:49]} Rc8 {[%emt 0:07:44]} 19. Nd3 {[%emt 0:00:36]} Qf6 {[%emt 0:03:11]} 20. Nc5 {[%emt 0:00:39]} Rfd8 {[%emt 0:00:50]} 21. b3 {[%emt 0:02:33]} Nd6 {[%emt 0:02:19]} 22. a4 {[%emt 0:01:52]} b4 {[%emt 0:01:01]} 23. cxb4 {[%emt 0:05:28]} Qxd4 {[%emt 0:00:01]} 24. Qe5+ {[%emt 0:00:02]} Qxe5 {[%emt 0:00:03]} 25. Rxe5 {[%emt 0:00:02]} a5 {[%emt 0:00:54]} 26. Ree1 {[%emt 0:05:37]} axb4 {[%emt 0:00:14]} 27. Rac1 {[%emt 0:01:36]} d4 {[%emt 0:02:22]} 28. Kf1 {[%emt 0:03:37]} Nf5 {[%emt 0:01:12]} 29. Nd3 {[%emt 0:01:30]} Rc3 {[%emt 0:01:48]} 30. Nxb4 {[%emt 0:01:30]} Rxb3 {[%emt 0:00:10]} 31. Nc6 {[%emt 0:00:57]} Ra8 {[%emt 0:00:52]} 32. a5 {[%emt 0:03:20]} d3 {[%emt 0:00:26]} 33. Red1 {[%emt 0:00:02]} Ra6 {[%emt 0:00:32]} 34. Ne5 {[%emt 0:01:10]} Rxa5 {[%emt 0:01:22]} 35. Rxd3 {[%emt 0:01:11]} Rxd3 {[%emt 0:01:02]} 36. Nxd3 {[%emt 0:00:13]} Ra2 {[%emt 0:00:02]} 37. Ne5 {[%emt 0:02:35]} Kf6 {[%emt 0:00:15]} 38. Nd7+ {[%emt 0:01:21]} Kg5 {[%emt 0:00:22]} 39. Ne5 {[%emt 0:01:01]} Nd6 {[%emt 0:01:32]} 40. g3 {[%emt 0:01:14]} Kf5 {[%emt 0:00:22]} 41. Nc4 {[%emt 0:01:42]} Ne4 {[%emt 0:00:10]} 42. Ne3+ {[%emt 0:00:14]} Kf6 {[%emt 0:00:44]} 43. Rc2 {[%emt 0:00:05]} Ra1+ {[%emt 0:00:42]} 44. Kg2 {[%emt 0:01:39]} g5 {[%emt 0:00:48]} 45. Ng4+ {[%emt 0:01:29]} Kg7 {[%emt 0:00:04]} 46. Ne3 {[%emt 0:01:46]} h5 {[%emt 0:00:45]} 47. h3 {[%emt 0:00:51]} f5 {[%emt 0:00:08]} 48. f3 {[%emt 0:01:23]} Nf6 {[%emt 0:00:59]} 49. Rc6 {[%emt 0:03:09]} f4 {[%emt 0:00:24]} 50. gxf4 {[%emt 0:01:36]} gxf4 {[%emt 0:00:01]} 51. Nc4 {[%emt 0:01:32]} Rc1 {[%emt 0:01:30]} 52. Ne5 {[%emt 0:00:23]} Rxc6 {[%emt 0:00:03]} 53. Nxc6 {[%emt 0:00:12]} Nd5 {[%emt 0:00:16]} 54. Ne5 {[%emt 0:02:39]} Ne3+ {[%emt 0:00:13]} 55. Kf2 {[%emt 0:00:45]} Kf6 {[%emt 0:00:01]} 56. Nd7+ {[%emt 0:00:37]} Kg5 {[%emt 0:01:20]} 57. Kg1 {[%emt 0:01:38]} Kf5 {[%emt 0:00:51]} 58. Nc5 {[%emt 0:00:58]} Nd5 {[%emt 0:00:37]} 59. Ne4 {[%emt 0:00:46]} Nf6 {[%emt 0:00:22]} 60. Nd6+ {[%emt 0:00:39]} Ke5 {[%emt 0:00:08]} 61. Nf7+ {[%emt 0:00:54]} Kd4 {[%emt 0:00:03]} 62. Kf2 {[%emt 0:01:14]} Nh7 {[%emt 0:00:45]} 63. Ke2 {[%emt 0:01:21]} Nf8 {[%emt 0:01:17]} 64. Nd8 {[%emt 0:01:13]} Ke5 {[%emt 0:00:26]} 65. Kf2 {[%emt 0:00:49]} Nh7 {[%emt 0:00:12]} 66. Kg2 {[%emt 0:01:10]} Ng5 {[%emt 0:00:04]} 67. Nc6+ {[%emt 0:02:28]} Kd6 {[%emt 0:00:42]} 68. Nd4 {[%emt 0:01:31]} Kd5 {[%emt 0:00:03]} 69. Ne2 {[%emt 0:00:46]} e5 {[%emt 0:00:03]} 70. Ng1 {[%emt 0:00:38]} Kd4 {[%emt 0:00:10]} 71. h4 {[%emt 0:02:50]} Nf7 {[%emt 0:00:09]} 72. Nh3 {[%emt 0:00:06]} Nh8 {[%emt 0:00:29]} 73. Ng5 {[%emt 0:00:52]} Ke3 {[%emt 0:00:44]} 74. Ne4 {[%emt 0:04:03]} Ng6 {[%emt 0:00:07]} 75. Nf6 {[%emt 0:00:25]} Nxh4+ {[%emt 0:00:01]} 76. Kh3 {[%emt 0:00:08]} Nxf3 {[%emt 0:00:09]} 77. Nxh5 {[%emt 0:00:19]} Ne1 {[%emt 0:00:17]} 78. Kg4 {[%emt 0:01:10]} f3 {[%emt 0:00:08]} 79. Ng3 {[%emt 0:00:25]} e4 {[%emt 0:02:06]} 80. Kf5 {[%emt 0:02:37]} f2 {[%emt 0:00:26]} 81. Nf1+ {[%emt 0:00:14]} Ke2 {[%emt 0:00:02]} 82. Nh2 {[%emt 0:00:04]} Nf3 {[%emt 0:00:20]} 0-1

[Event "Portugal Honour 2021"]
[Site "Fatima"]
[Date "2021.04.07"]
[Round "2.10"]
[White "Santos, Julio"]
[Black "Morais, Vitor"]
[Result "1/2-1/2"]
[ECO "B13"]
[WhiteElo "1884"]
[BlackElo "1904"]
[Annotator "RC"]
[PlyCount "32"]
[EventDate "2021.04.06"]
[EventType "tourn"]
[EventCountry "POR"]
[SourceTitle "playchess.com"]
[Source "ChessBase"]
[SourceQuality "1"]
[TimeControl "5400+30"]

1. d4 {[%emt 0:00:00]} c6 {[%emt 0:00:00]} 2. e4 {[%emt 0:00:30]} d5 {[%emt 0:00:30]} 3. exd5 {[%emt 0:00:30]} cxd5 {[%emt 0:00:30]} 4. Bb5+ {[%emt 0:00:30]} Bd7 {[%emt 0:00:30]} 5. Qe2 {[%emt 0:00:30]} Bxb5 {[%emt 0:00:30]} 6. Qxb5+ {[%emt 0:00:30]} Qd7 {[%emt 0:00:30]} 7. Qxd7+ {[%emt 0:05:14]} Nxd7 {[%emt 0:01:47]} 8. Nf3 {[%emt 0:02:44]} e6 {[%emt 0:00:11]} 9. O-O {[%emt 0:00:32]} Bd6 {[%emt 0:00:07]} 10. Re1 {[%emt 0:02:33]} Ne7 11. Bg5 {[%emt 0:01:02]} Ng6 {[%emt 0:00:21]} 12. g3 {[%emt 0:01:08]} h6 {[%emt 0:00:10]} 13. Be3 {[%emt 0:01:49]} O-O {[%emt 0:00:09]} 14. Nbd2 {[%emt 0:00:55]} Rac8 {[%emt 0:00:16]} 15. Rac1 {[%emt 0:00:30]} b5 {[%emt 0:00:13]} 16. c3 Nb6 1/2-1/2

[Event "Portugal Honour 2021"]
[Site "Fatima"]
[Date "2021.04.08"]
[Round "3.6"]
[White "Morais, Vitor"]
[Black "Goncalves, Carlos"]
[Result "1-0"]
[ECO "B10"]
[WhiteElo "1904"]
[BlackElo "1600"]
[Annotator "NA"]
[PlyCount "83"]
[EventDate "2021.04.06"]
[EventType "tourn"]
[EventCountry "POR"]
[SourceTitle "playchess.com"]
[Source "ChessBase"]
[SourceQuality "1"]
[TimeControl "5400+30"]

1. e4 {[%emt 0:00:00]} c6 {[%emt 0:33:12]} 2. c4 {[%emt 0:00:00]} e5 {[%emt 0:03:36]} 3. Nc3 {[%emt 0:01:57]} Nf6 {[%emt 0:02:15]} 4. Nf3 {[%emt 0:00:13]} d6 {[%emt 0:06:48]} 5. d4 {[%emt 0:01:26]} Nbd7 {[%emt 0:07:03]} 6. h3 {[%emt 0:00:08]} h6 {[%emt 0:03:31]} 7. Be3 {[%emt 0:00:28]} Be7 {[%emt 0:09:10]} 8. Be2 {[%emt 0:01:13]} O-O {[%emt 0:01:34]} 9. O-O {[%emt 0:00:09]} Qc7 {[%emt 0:02:08]} 10. Rc1 {[%emt 0:00:11]} Re8 {[%emt 0:02:11]} 11. Nd2 {[%emt 0:02:37]} Nf8 {[%emt 0:02:23]} 12. f4 {[%emt 0:01:25]} exd4 {[%emt 0:01:44]} 13. Bxd4 {[%emt 0:00:14]} Ne6 {[%emt 0:01:25]} 14. Be3 {[%emt 0:00:15]} Bf8 {[%emt 0:01:15]} 15. Bd3 {[%emt 0:00:22]} Nc5 {[%emt 0:00:47]} 16. Bb1 {[%emt 0:01:30]} a5 {[%emt 0:02:35]} 17. Kh1 {[%emt 0:00:34]} Bd7 {[%emt 0:01:04]} 18. Bxc5 {[%emt 0:02:12]} dxc5 {[%emt 0:00:06]} 19. e5 {[%emt 0:00:10]} Nh7 {[%emt 0:02:15]} 20. Nde4 {[%emt 0:00:12]} Rad8 {[%emt 0:01:17]} 21. Qh5 {[%emt 0:00:26]} g6 {[%emt 0:03:07]} 22. Qh4 {[%emt 0:00:15]} Bf5 {[%emt 0:01:26]} 23. g4 {[%emt 0:00:40]} Bxe4+ {[%emt 0:01:18]} 24. Nxe4 {[%emt 0:00:13]} Qe7 {[%emt 0:00:13]} 25. Qg3 {[%emt 0:01:08]} Bg7 {[%emt 0:02:08]} 26. Rce1 {[%emt 0:01:49]} Rd4 {[%emt 0:01:04]} 27. b3 {[%emt 0:00:22]} Red8 {[%emt 0:00:43]} 28. Nd6 {[%emt 0:01:24]} R8xd6 {[%emt 0:00:54]} 29. exd6 {[%emt 0:00:13]} Qxd6 {[%emt 0:00:23]} 30. Re2 {[%emt 0:01:08]} Rd2 {[%emt 0:02:38]} 31. Qe3 {[%emt 0:00:14]} Rxe2 {[%emt 0:01:01]} 32. Qxe2 {[%emt 0:00:09]} Bd4 {[%emt 0:00:02]} 33. Qe4 {[%emt 0:02:15]} Qd7 {[%emt 0:00:22]} 34. f5 {[%emt 0:00:59]} Ng5 {[%emt 0:00:01]} 35. Qd3 {[%emt 0:00:41]} b5 36. fxg6 {[%emt 0:00:11]} f6 {[%emt 0:01:50]} 37. Rf5 {[%emt 0:01:08]} Qe6 {[%emt 0:00:42]} 38. Kg2 {[%emt 0:01:36]} Qe1 {[%emt 0:01:17]} 39. Rf1 {[%emt 0:00:13]} Qh4 {[%emt 0:00:26]} 40. Qg3 {[%emt 0:00:39]} Qxg3+ {[%emt 0:00:48]} 41. Kxg3 {[%emt 0:00:20]} Ne4+ {[%emt 0:00:08]} 42. Bxe4 {[%emt 0:00:16]} 1-0

[Event "Portugal Honour 2021"]
[Site "Fatima"]
[Date "2021.04.08"]
[Round "3.7"]
[White "Basilio, Rodrigo"]
[Black "Santos, Julio"]
[Result "1-0"]
[ECO "C50"]
[WhiteElo "1849"]
[BlackElo "1884"]
[Annotator "NA"]
[PlyCount "101"]
[EventDate "2021.04.06"]
[EventType "tourn"]
[EventCountry "POR"]
[SourceTitle "playchess.com"]
[Source "ChessBase"]
[SourceQuality "1"]
[TimeControl "5400+30"]

1. e4 {[%emt 0:06:09]} e5 {[%emt 0:00:13]} 2. Nf3 {[%emt 0:00:10]} Nc6 {[%emt 0:00:07]} 3. Bc4 {[%emt 0:00:03]} Bc5 {[%emt 0:00:17]} 4. d3 {[%emt 0:00:06]} d6 {[%emt 0:00:51]} 5. c3 {[%emt 0:00:06]} Nf6 {[%emt 0:01:01]} 6. Nbd2 {[%emt 0:00:18]} O-O {[%emt 0:00:21]} 7. O-O {[%emt 0:00:04]} Na5 {[%emt 0:01:08]} 8. Bxf7+ {[%emt 0:00:33]} Rxf7 {[%emt 0:00:02]} 9. b4 {[%emt 0:00:08]} Bb6 {[%emt 0:04:00]} 10. bxa5 {[%emt 0:00:16]} Bxa5 {[%emt 0:00:03]} 11. Ng5 {[%emt 0:01:08]} Rf8 {[%emt 0:00:32]} ({Don't go for} 11... Bxc3 $2 12. Nxf7 Qe7 {[#]} 13. Nxd6 $1 $18 {[%mdl 512]} (13. Nh6+ Kh8 $16)) 12. Nc4 $16 {[%emt 0:27:38]} h6 {[%emt 0:08:15]} 13. Nxa5 {[%emt 0:04:10]} hxg5 {[%emt 0:00:03]} 14. Qb3+ {[%emt 0:01:05]} Kh7 {[%emt 0:00:00]} 15. Bxg5 {[%emt 0:00:30]} Qe8 {[%emt 0:00:28]} 16. Qd1 {[%emt 0:01:54]} Qg6 {[%emt 0:00:51]} 17. Qd2 {[%emt 0:22:43]} b6 {[%emt 0:03:35]} 18. Nb3 {[%emt 0:06:04]} Bb7 {[%emt 0:03:54]} 19. f4 {[%emt 0:05:36]} Nh5 {[%emt 0:09:51]} 20. f5 {[%emt 0:03:53]} Qe8 {[%emt 0:00:23]} 21. g4 {[%emt 0:01:35]} Nf6 {[%emt 0:00:27]} 22. Bxf6 {[%emt 0:00:11]} gxf6 {[%emt 0:00:39]} 23. Rf3 {[%emt 0:00:47]} Rg8 {[%emt 0:01:54]} 24. Rh3+ {[%emt 0:00:26]} Kg7 {[%emt 0:00:02]} 25. Kf2 {[%emt 0:02:47]} Rh8 {[%emt 0:03:17]} 26. Qe3 {[%emt 0:00:17]} Qc6 {[%emt 0:02:18]} 27. c4 {[%emt 0:03:52]} Rxh3 {[%emt 0:00:29]} 28. Qxh3 {[%emt 0:00:02]} Rh8 {[%emt 0:00:02]} 29. Qg3 {[%emt 0:00:25]} Qe8 {[%emt 0:07:53]} 30. Rg1 {[%emt 0:01:20]} Qg8 {[%emt 0:01:58]} 31. h4 {[%emt 0:03:59]} Qh7 {[%emt 0:01:22]} 32. Rh1 {[%emt 0:00:25]} Qh6 33. Rh2 {[%emt 0:02:48]} a5 {[%emt 0:00:45]} 34. Kg1 {[%emt 0:00:08]} Kf7 {[%emt 0:04:47]} 35. Nd2 {[%emt 0:02:03]} Ba6 {[%emt 0:01:03]} 36. g5 {[%emt 0:00:26]} Qh5 {[%emt 0:00:05]} 37. Nf3 Rg8 38. Rg2 {[%emt 0:01:41]} b5 {[%emt 0:01:46]} 39. Qf2 {[%emt 0:02:44]} bxc4 {[%emt 0:00:23]} 40. g6+ {[%emt 0:00:34]} Kf8 {[%emt 0:05:24]} 41. Qa7 {[%emt 0:00:39]} Rg7 {[%emt 0:14:31]} 42. Qb8+ {[%emt 0:00:14]} Ke7 {[%emt 0:00:01]} 43. Qxc7+ {[%emt 0:00:01]} Ke8 {[%emt 0:00:40]} 44. Qxg7 {[%emt 0:00:36]} Qxf3 {[%emt 0:00:09]} 45. Qh6 {[%emt 0:00:12]} cxd3 {[%emt 0:01:32]} 46. g7 {[%emt 0:00:05]} Bc4 {[%emt 0:00:42]} 47. g8=Q+ Bxg8 {[%emt 0:00:09]} 48. Rxg8+ {[%emt 0:00:46]} Kd7 {[%emt 0:00:13]} 49. Qg7+ {[%emt 0:00:50]} Kc6 {[%emt 0:00:00]} 50. Rc8+ {[%emt 0:00:00]} Kb5 51. Qb7+ 1-0

[Event "Portugal Honour 2021"]
[Site "Fatima"]
[Date "2021.04.08"]
[Round "3.8"]
[White "Pina, Tiago"]
[Black "Barrento, Jorge"]
[Result "1-0"]
[ECO "B04"]
[WhiteElo "1843"]
[BlackElo "1724"]
[Annotator "NA RC"]
[PlyCount "29"]
[EventDate "2021.04.06"]
[EventType "tourn"]
[EventCountry "POR"]
[SourceTitle "playchess.com"]
[Source "ChessBase"]
[SourceQuality "1"]
[TimeControl "5400+30"]

{[%evp 8,29,28,30,47,51,39,47,41,32767,32767,32767,32767,32767,32767,100,32767,32767,32767,32767,276,295,32767,604]} 1. e4 {[%emt 0:00:00]} Nf6 {[%emt 0:00:21]} 2. e5 {[%emt 0:00:00]} Nd5 {[%emt 0:00:02]} 3. d4 {[%emt 0:00:00]} d6 {[%emt 0:00:01]} 4. Nf3 {[%emt 0:00:05]} dxe5 {[%emt 0:01:28]} 5. Nxe5 {[%emt 0:00:16]} c6 {[%emt 0:00:24]} 6. Be2 {[%emt 0:00:19]} g6 {[%emt 0:00:23]} 7. O-O {[%emt 0:00:29]} Bg7 {[%emt 0:00:06]} 8. c4 {[%emt 0:02:01]} Nb6 {[%emt 0:00:29]} 9. f4 {[%emt 0:00:37]} O-O {[%emt 0:00:47]} 10. Nc3 {[%emt 0:00:35]} Na6 {[%emt 0:00:43]} 11. Be3 {[%emt 0:01:38]} Nc7 {[%emt 0:00:43]} 12. Qd2 {[%emt 0:00:47]} Ne8 {[%emt 0:07:15]} 13. Rad1 {[%emt 0:02:57]} Nd6 {[%emt 0:04:57]} (13... f6 $16) 14. c5 $18 {[%emt 0:02:23] Double Attack} Bxe5 {[%emt 0:00:13]} 15. dxe5 {[%emt 0:00:35] Pin} 1-0

[Event "Portugal Honour 2021"]
[Site "Fatima"]
[Date "2021.04.08"]
[Round "3.9"]
[White "Sarabando, Rodrigo"]
[Black "Lavrador, Rodolfo"]
[Result "1/2-1/2"]
[ECO "E00"]
[WhiteElo "1682"]
[BlackElo "1815"]
[Annotator "NA"]
[PlyCount "113"]
[EventDate "2021.04.06"]
[EventType "tourn"]
[EventCountry "POR"]
[SourceTitle "playchess.com"]
[Source "ChessBase"]
[SourceQuality "1"]
[TimeControl "5400+30"]

1. d4 {[%emt 0:00:00]} e6 {[%emt 0:00:49]} 2. c4 {[%emt 0:00:00]} Bb4+ {[%emt 0:00:20]} 3. Bd2 {[%emt 0:01:23]} Qe7 {[%emt 0:00:26]} 4. g3 {[%emt 0:00:33]} f5 {[%emt 0:01:05]} 5. Bg2 {[%emt 0:00:53]} Nf6 {[%emt 0:00:17]} 6. Nf3 {[%emt 0:00:16]} O-O {[%emt 0:01:04]} 7. O-O {[%emt 0:01:10]} Bxd2 {[%emt 0:00:16]} 8. Qxd2 {[%emt 0:00:11]} Ne4 {[%emt 0:01:32]} 9. Qc2 {[%emt 0:00:24]} d6 {[%emt 0:05:05]} 10. Nc3 {[%emt 0:02:11]} Nxc3 {[%emt 0:02:29]} 11. Qxc3 {[%emt 0:04:20]} Nd7 {[%emt 0:00:12]} 12. Rfe1 {[%emt 0:02:54]} Nf6 {[%emt 0:04:39]} 13. Nd2 {[%emt 0:02:47]} Rb8 $16 {[%emt 0:02:43]} 14. a4 {[%emt 0:02:26]} Bd7 {[%emt 0:01:53]} 15. e4 {[%emt 0:02:47]} fxe4 {[%emt 0:01:25]} 16. Nxe4 {[%emt 0:03:13]} Qe8 {[%emt 0:06:53]} 17. Ng5 {[%emt 0:03:14]} Qh5 {[%emt 0:01:09]} 18. h4 {[%emt 0:08:37]} Rbe8 {[%emt 0:12:46]} 19. Bh3 e5 20. dxe5 {[%emt 0:03:14]} dxe5 {[%emt 0:01:10]} 21. Bxd7 {[%emt 0:02:28]} Nxd7 {[%emt 0:00:20]} 22. Qd3 {[%emt 0:01:30]} Nf6 {[%emt 0:01:06]} 23. Ra3 {[%emt 0:02:26]} h6 {[%emt 0:00:50]} 24. Ne4 {[%emt 0:00:53]} Kh8 {[%emt 0:07:31]} 25. Qc2 {[%emt 0:02:56]} Qf5 {[%emt 0:02:47]} 26. Rae3 {[%emt 0:03:46]} g5 {[%emt 0:11:57]} 27. hxg5 {[%emt 0:02:20]} hxg5 {[%emt 0:00:09]} 28. Qe2 {[%emt 0:00:07]} Ng4 {[%emt 0:02:15]} 29. Rb3 {[%emt 0:00:25]} b6 {[%emt 0:01:00]} 30. f3 {[%emt 0:02:29]} Nh6 {[%emt 0:01:05]} 31. g4 {[%emt 0:00:20]} Qg6 {[%emt 0:02:15]} 32. Rd1 {[%emt 0:01:01]} Re7 {[%emt 0:00:54]} 33. Rd5 {[%emt 0:01:04]} Nf7 {[%emt 0:03:34]} 34. Rbd3 {[%emt 0:01:01]} Kg7 {[%emt 0:02:09]} 35. Rd7 {[%emt 0:00:54]} Qe6 {[%emt 0:00:34]} 36. Rxe7 {[%emt 0:00:27]} Qxe7 {[%emt 0:00:10]} 37. Ng3 {[%emt 0:00:06]} Qc5+ {[%emt 0:02:30]} 38. Re3 {[%emt 0:01:33]} Rd8 {[%emt 0:02:58]} 39. Kg2 {[%emt 0:01:17]} Qb4 {[%emt 0:01:50]} 40. Rd3 {[%emt 0:02:42]} Rxd3 {[%emt 0:00:26]} 41. Qxd3 {[%emt 0:00:08]} Qxb2+ {[%emt 0:00:24]} 42. Kh3 {[%emt 0:00:02]} Kf8 {[%emt 0:03:18]} 43. Qd5 {[%emt 0:02:14]} Qb1 {[%emt 0:03:26]} 44. Qa8+ {[%emt 0:02:24]} Kg7 45. Nh5+ {[%emt 0:00:41]} Kh7 {[%emt 0:02:34]} 46. Ng3 {[%emt 0:00:47]} Qd3 {[%emt 0:02:25]} 47. Qc6 {[%emt 0:02:04]} Qd6 {[%emt 0:00:44]} 48. Qe8 {[%emt 0:01:05]} Qf6 {[%emt 0:01:01]} 49. Nf5 {[%emt 0:02:16]} Nd6 {[%emt 0:00:46]} 50. Qc6 {[%emt 0:00:38]} Qf7 {[%emt 0:00:55]} 51. Nxd6 {[%emt 0:02:37]} cxd6 {[%emt 0:00:08]} 52. Kg2 {[%emt 0:00:26]} Qe7 {[%emt 0:00:25]} 53. Qe4+ {[%emt 0:00:26]} Kg7 {[%emt 0:00:16]} 54. Qf5 {[%emt 0:00:25]} a5 {[%emt 0:00:41]} 55. Qe4 {[%emt 0:00:15]} Qd7 {[%emt 0:00:50]} 56. Qe3 {[%emt 0:00:24]} Qd8 {[%emt 0:01:55]} 57. Qe4 {[%emt 0:00:08]} 1/2-1/2

[Event "Portugal Honour 2021"]
[Site "Fatima"]
[Date "2021.04.08"]
[Round "3.10"]
[White "Bartolo, Filipe"]
[Black "Santos, Ruben"]
[Result "1-0"]
[ECO "C03"]
[WhiteElo "1876"]
[BlackElo "1759"]
[Annotator "NA"]
[PlyCount "101"]
[EventDate "2021.04.06"]
[EventType "tourn"]
[EventCountry "POR"]
[SourceTitle "playchess.com"]
[Source "ChessBase"]
[SourceQuality "1"]
[TimeControl "5400+30"]

1. e4 {[%emt 0:03:27]} e6 {[%emt 0:00:00]} 2. d4 {[%emt 0:00:05]} d5 {[%emt 0:00:00]} 3. Nd2 {[%emt 0:00:05]} dxe4 {[%emt 0:00:18]} 4. Nxe4 {[%emt 0:00:07]} b6 {[%emt 0:00:09]} 5. Nf3 {[%emt 0:00:20]} Bb7 {[%emt 0:00:08]} 6. Bb5+ {[%emt 0:00:12]} Nd7 {[%emt 0:00:23]} 7. Ne5 {[%emt 0:01:53]} Bc8 $2 {[%emt 0:07:31]} (7... c6) 8. Qf3 {[%emt 0:01:34]} f5 $18 {[%emt 0:17:18]} 9. Ng5 {[%emt 0:30:34]} c6 {[%emt 0:09:32]} 10. Qxc6 {[%emt 0:00:56]} Rb8 {[%emt 0:12:20]} 11. Nxd7 {[%emt 0:11:09]} Bb4+ {[%emt 0:14:03]} 12. c3 {[%emt 0:00:12]} Bxd7 {[%emt 0:12:10]} 13. Qxe6+ {[%emt 0:00:22]} Qe7 {[%emt 0:00:20]} 14. Bxd7+ {[%emt 0:00:05]} Kf8 {[%emt 0:00:30]} 15. cxb4 {[%emt 0:02:18]} h6 {[%emt 0:02:22]} 16. O-O {[%emt 0:01:28]} hxg5 {[%emt 0:01:42]} 17. Qxe7+ {[%emt 0:00:18]} Nxe7 18. Bxg5 {[%emt 0:00:30]} Rh5 {[%emt 0:02:47]} 19. Bxe7+ {[%emt 0:06:56]} Kxe7 20. Ba4 Rbh8 {[%emt 0:00:50]} 21. h3 {[%emt 0:00:50]} g5 {[%emt 0:00:18]} 22. Rfe1+ {[%emt 0:01:26]} Kf6 {[%emt 0:00:20]} 23. Re3 {[%emt 0:02:12]} g4 {[%emt 0:04:28]} 24. Rc1 {[%emt 0:00:29]} R5h7 {[%emt 0:05:49]} 25. Re8 {[%emt 0:02:14]} Rxe8 {[%emt 0:02:24]} 26. Bxe8 {[%emt 0:00:09]} Re7 {[%emt 0:00:11]} 27. Bb5 {[%emt 0:00:08]} Re4 {[%emt 0:02:15]} 28. Rd1 {[%emt 0:00:46]} Ke7 {[%emt 0:00:56]} 29. hxg4 {[%emt 0:00:49]} fxg4 {[%emt 0:00:34]} 30. f3 gxf3 {[%emt 0:00:49]} 31. gxf3 {[%emt 0:00:13]} Rh4 {[%emt 0:00:11]} 32. Kg2 {[%emt 0:00:09]} Kd6 {[%emt 0:00:26]} 33. a3 {[%emt 0:00:23]} Rh5 34. Ba4 {[%emt 0:00:32]} Rg5+ {[%emt 0:00:57]} 35. Kf2 {[%emt 0:00:22]} Rh5 {[%emt 0:00:02]} 36. Ke3 {[%emt 0:01:39]} Rh2 {[%emt 0:01:22]} 37. Rd2 {[%emt 0:00:08]} Rh1 {[%emt 0:00:25]} 38. Rg2 {[%emt 0:00:59]} Re1+ {[%emt 0:00:46]} 39. Kd3 {[%emt 0:00:05]} Rf1 {[%emt 0:00:21]} 40. Rg6+ {[%emt 0:00:28]} Kc7 {[%emt 0:01:18]} 41. Ke4 {[%emt 0:01:01]} Rf2 {[%emt 0:00:54]} 42. Rc6+ {[%emt 0:00:08]} Kb7 {[%emt 0:00:45]} 43. Rc2 {[%emt 0:00:05]} Rf1 {[%emt 0:00:47]} 44. b5 {[%emt 0:00:40]} a5 {[%emt 0:01:01]} 45. bxa6+ {[%emt 0:01:52]} Ka7 {[%emt 0:00:24]} 46. Bb5 {[%emt 0:01:08]} Re1+ {[%emt 0:00:40]} 47. Re2 {[%emt 0:00:10]} Rc1 {[%emt 0:00:11]} 48. Kd5 {[%emt 0:00:13]} Rc7 {[%emt 0:00:13]} 49. Kd6 {[%emt 0:00:39]} Kb8 {[%emt 0:02:26]} 50. Re8+ {[%emt 0:00:47]} Ka7 {[%emt 0:00:49]} 51. Bc6 {[%emt 0:00:26]} 1-0

[Event "Portugal Honour 2021"]
[Site "Fatima"]
[Date "2021.04.08"]
[Round "4.6"]
[White "Goncalves, Carlos"]
[Black "Santos, Ruben"]
[Result "1-0"]
[ECO "A05"]
[WhiteElo "1600"]
[BlackElo "1759"]
[Annotator "NA RC"]
[PlyCount "69"]
[EventDate "2021.04.06"]
[EventType "tourn"]
[EventCountry "POR"]
[SourceTitle "playchess.com"]
[Source "ChessBase"]
[SourceQuality "1"]
[TimeControl "5400+30"]

1. Nf3 {[%emt 0:00:00]} Nf6 {[%emt 0:00:00]} 2. g3 {[%emt 0:00:03]} g6 {[%emt 0:00:17]} 3. Bg2 {[%emt 0:00:10]} Bg7 {[%emt 0:00:10]} 4. O-O {[%emt 0:00:22]} O-O {[%emt 0:00:08]} 5. d4 {[%emt 0:00:14]} d5 {[%emt 0:00:17]} 6. Nbd2 {[%emt 0:01:00]} Bf5 {[%emt 0:00:54]} 7. h3 {[%emt 0:00:15]} Qc8 {[%emt 0:00:43]} 8. Kh2 {[%emt 0:00:18]} c5 {[%emt 0:00:31]} 9. c3 {[%emt 0:05:35]} h5 {[%emt 0:03:07]} 10. Nh4 {[%emt 0:03:01]} Bd7 {[%emt 0:03:07]} 11. dxc5 {[%emt 0:02:57]} Qxc5 {[%emt 0:05:16]} 12. Nb3 {[%emt 0:00:14]} Qc8 {[%emt 0:00:19]} 13. Bxd5 {[%emt 0:02:54]} Nxd5 {[%emt 0:02:01]} 14. Qxd5 {[%emt 0:00:11]} Bxh3 {[%emt 0:00:14]} 15. Nxg6 {[%emt 0:02:00]} Nc6 {[%emt 0:09:58]} 16. Nxf8 {[%emt 0:15:34]} Bxf1 {[%emt 0:02:19]} 17. Qxh5 {[%emt 0:01:44]} Bxf8 {[%emt 0:00:57]} 18. Be3 {[%emt 0:03:07]} Bxe2 {[%emt 0:06:21]} 19. Qxe2 {[%emt 0:00:19]} Ne5 {[%emt 0:00:21]} 20. Bd4 {[%emt 0:03:25]} Ng4+ {[%emt 0:06:50]} 21. Kg2 {[%emt 0:02:36]} f6 {[%emt 0:03:19]} 22. Rh1 {[%emt 0:21:11]} Nh6 {[%emt 0:11:11]} 23. Be3 {[%emt 0:11:58]} Nf5 {[%emt 0:06:23]} 24. Bc1 {[%emt 0:07:08]} Bg7 {[%emt 0:07:10]} 25. Qh5 {[%emt 0:05:18]} Qe6 {[%emt 0:04:49]} 26. Qf3 {[%emt 0:04:30]} Nd6 {[%emt 0:11:52]} 27. Nc5 {[%emt 0:03:03]} Qxa2 {[%emt 0:01:17]} 28. Nxb7 {[%emt 0:01:11]} Nxb7 {[%emt 0:00:54]} 29. Qxb7 {[%emt 0:00:10]} Re8 {[%emt 0:00:09]} 30. Qe4 {[%emt 0:00:57]} e5 {[%emt 0:04:43]} 31. Qg6 {[%emt 0:00:27]} Re7 {[%emt 0:00:54]} 32. Rd1 {[%emt 0:02:07]} Qa5 {[%emt 0:05:59]} 33. Bh6 {[%emt 0:00:33]} Qb6 {[%emt 0:03:04]} 34. Bxg7 {[%emt 0:00:21]} f5 {[%emt 0:00:52]} 35. Bf6+ {[%emt 0:01:01]} 1-0